Cogmind - Beta 13 @@@ ROGUE MODE // 2024.04.03 @ 09:43:22 Player: Cyurio Result: Destroyed by Y-45 Defender with Beam Rifle Performance ------------- Evolutions (1) 500 Regions Visited (3) 600 Robots Destroyed (53) 265 Value Destroyed (1243) 1243 Prototype IDs (0) 0 Alien Tech Used (0) 0 Bonus (228) 228 TOTAL SCORE: 2836 Bonus ------- High Alert Combat Kills 181 Follower Combat Kills 47 Cogmind --------- Core Integrity 0/400 Matter 284/300 Energy 265/265 System Corruption 3% Temperature Cool (9) Movement Walking (120) Location -9/Materials Parts ------- > --- POWER (1) -------- Improved Ion Engine > --- PROPULSION (3) --- Aluminum Leg Aluminum Leg Aluminum Leg > --- UTILITY (3) ------ Small Storage Unit > --- WEAPON (2) ------- Heavy Assault Rifle Light Cannon > --- INVENTORY (8) ---- Light Nuclear Core Aluminum Leg Wheel Wheel Heavy Assault Rifle Heavy Assault Rifle Light Cannon Rocket Launcher Peak State ------------ > --- POWER ------------ Improved Ion Engine > --- PROPULSION ------- Light Treads Light Treads Light Treads > --- UTILITY ---------- Small Storage Unit Light Armor Plating High-powered Tractor Beam > --- WEAPON ----------- Light Assault Rifle Heavy Assault Rifle > --- INVENTORY -------- Light Nuclear Core Wheel Wheel Heavy Assault Rifle Heavy Assault Rifle Heavy Assault Rifle Heavy Assault Rifle Rocket Launcher [Rating: 13] Favorites ----------- Power Light Ion Engine Engine Light Ion Engine Propulsion Aluminum Leg Treads Light Treads Leg Aluminum Leg Utility Small Storage Unit Device Tractor Beam Storage Small Storage Unit Processor Targeting Computer Protection Light Armor Plating Weapon Heavy Assault Rifle Energy Gun Medium Laser Ballistic Gun Heavy Assault Rifle Ballistic Cannon Light Cannon Build | -11 -10 -10 -9 ------- Run | Yrd Mat Min Mat Slots Evolved 2 | . . . 2 Power . | . . . . Propulsion 1 | . . . 1 Utility 1 | . . . 1 Weapon . | . . . . Parts Attached 29 | . 3 . 26 Power 2 | . . . 2 Engine 2 | . . . 2 Core . | . . . . Reactor . | . . . . Propulsion 12 | . . . 12 Treads 3 | . . . 3 Leg 9 | . . . 9 Wheel . | . . . . Hover . | . . . . Flight . | . . . . Utility 5 | . 2 . 3 Device 2 | . 1 . 1 Storage 1 | . . . 1 Processor 1 | . 1 . . Hackware . | . . . . Protection 1 | . . . 1 Artifact . | . . . . Weapon 10 | . 1 . 9 Energy Gun . | . . . . Energy Cannon . | . . . . Ballistic Gun 8 | . . . 8 Ballistic Cannon 2 | . 1 . 1 Launcher . | . . . . Special Weapon . | . . . . Impact Weapon . | . . . . Slashing Weapon . | . . . . Piercing Weapon . | . . . . Special Melee Weapon . | . . . . Unidentified Prototypes . | . . . . Parts Lost 14 | . . . 14 Power 2 | . . . 2 Propulsion 5 | . . . 5 Utility 4 | . . . 4 Weapon 3 | . . . 3 Highest Loss Streak 8 | . . . 8 To Critical Strikes 1 | . . . 1 Average Slot Usage (%) 86 | . 98 100 84 Engine 11 | . 14 14 10 Treads 11 | . . . 13 Leg 16 | . 28 28 14 Device 9 | . 13 14 8 Storage 9 | . 2 . 11 Processor 4 | . 11 14 3 Ballistic Gun 16 | . 14 14 16 Ballistic Cannon 6 | . 13 14 5 Naked Turns . | . . . . Heaviest Build 22 | 12 14 9 22 Greatest Support 60 | 20 20 20 60 Greatest Overweight (x) 1 | . . . 1 Average Overweight (x) . | . . . . Largest Inventory Capacity 8 | . 8 5 8 Average Capacity 7 | . 5 5 8 Most Carried 8 | . 6 5 8 Average Carried 6 | . 5 5 7 Final Capacity 8 | 8 5 5 8 Final Carried 8 | 6 5 5 8 Class Distribution -------------------- 53% | Scavenger-Mutant 46% | Mutant Dominant Class ---------------- Mutant | -10/Materials Mutant | -10/Mines Scavenger-Mutant | -9/Materials Resources | -11 -10 -10 -9 ----------- Run | Yrd Mat Min Mat Matter Collected 1244 | 200 47 18 979 Remotely 895 | . 47 18 830 Salvage Created 1509 | . 37 16 1456 Parts 108 | . 5 2 101 Haulers Intercepted 3 | . . . 3 Recyclers Shooed 2 | . . . 2 Parts Field Recycled . | . . . . Retrieved Matter . | . . . . Parts Self-Destructed . | . . . . Prevented . | . . . . Kills | -11 -10 -10 -9 ------- Run | Yrd Mat Min Mat Combat Hostiles Destroyed 46 | . 3 1 42 Guns 29 | . 1 . 28 Cannons 17 | . 2 1 14 Classes Destroyed 9 | . 1 . 8 Worker 1 | . . . 1 Tunneler 1 | . . . 1 Hauler 3 | . . . 3 Mechanic 1 | . . . 1 Watcher 1 | . . . 1 Swarmer 20 | . 3 1 16 Grunt 17 | . . . 17 Brawler 1 | . . . 1 Sentry 8 | . . . 8 Best Kill Streak 7 | . 3 1 7 Combat Bots Only 6 | . 3 1 6 Max Kills in Single Turn 2 | . 2 1 2 Gunslinging 1 | . . . 1 Exploded . | . . . . Melee . | . . . . Uniques/NPCs Destroyed . | . . . . Combat | -11 -10 -10 -9 -------- Run | Yrd Mat Min Mat Hostile Shots Fired 262 | . 7 . 255 Missed 51 | . 2 . 49 Damage Taken 2334 | . 45 . 2289 Core 426 | . 18 . 408 Absorbed by Shields . | . . . . Core Remaining (%) 96 | 100 . 92 . Volleys Fired 146 | . 4 1 141 Largest 2 | . 2 2 2 Hottest 58 | . 55 55 58 Shots Fired 279 | . 8 2 269 Gun 192 | . 4 1 187 Cannon 87 | . 4 1 82 Launcher . | . . . . Special . | . . . . Kinetic 279 | . 8 2 269 Thermal . | . . . . Explosive . | . . . . Electromagnetic . | . . . . Robot Hit Streak 26 | . 2 1 26 Robot Miss Streak 3 | . 2 1 3 Penetration Max . | . . . . Secondary Targets 1 | . . . 1 Max Gunslinging Chain 1 | . . . 1 Shots Hit Robots 188 | . 4 1 183 Core Hits 79 | . 3 1 75 Critical Kills 1 | . . . 1 Critical Parts Destroyed 2 | . . . 2 Critical Strikes 5 | . . . 5 Destroy 3 | . . . 3 Blast 2 | . . . 2 Melee Attacks . | . . . . Impact . | . . . . Slashing . | . . . . Piercing . | . . . . Sneak Attacks . | . . . . Combat Hostiles . | . . . . Follow-up Attacks . | . . . . Damage Inflicted 2822 | . 72 16 2734 Guns 1717 | . 23 . 1694 Cannons 1084 | . 49 16 1019 Explosions . | . . . . Melee . | . . . . Ramming 21 | . . . 21 Kinetic 2801 | . 72 16 2713 Thermal . | . . . . Explosive . | . . . . Electromagnetic . | . . . . Impact . | . . . . Slashing . | . . . . Piercing . | . . . . Highest Corruption 3 | . . . 3 Average Corruption 3 | . . . 3 Corruption Purged . | . . . . Corruption Blocked . | . . . . Effects 1 | . . . 1 Misfires 1 | . . . 1 Overload Shots . | . . . . Overflow Damage . | . . . . Projectiles . | . . . . Explosions . | . . . . Melee . | . . . . Knockbacks 16 | . 2 . 14 Impact . | . . . . Kinetic 14 | . 1 . 13 Secondary 2 | . 1 . 1 Self-Inflicted Damage . | . . . . Shots . | . . . . Rammed 3 | . . . 3 Targets Rammed 3 | . . . 3 Kicked . | . . . . Crushed . | . . . . Highest Temperature 105 | . . . 105 Average Temperature 29 | . . . 29 Received Heat Transfer 570 | . . . 570 Siege Activations . | . . . . Robots Corrupted . | . . . . Combat Hostiles . | . . . . Parts Fried . | . . . . Impact Corruptions . | . . . . Robots Melted . | . . . . Combat Hostiles . | . . . . Parts Melted . | . . . . Heat Transferred . | . . . . Parts Sabotaged . | . . . . Parts Stolen . | . . . . Parts Stripped . | . . . . Power Chain Reactions . | . . . . Alert | -11 -10 -10 -9 ------- Run | Yrd Mat Min Mat Peak Influence 735 | . 85 107 735 Initial 41 | . . 33 41 Average 352 | . 40 81 408 Maximum Alert Level 3 | . . . 3 Low Security (%) 25 | . 100 100 12 Level 1 18 | . . . 21 Level 2 51 | . . . 61 Level 3 3 | . . . 4 Level 4 . | . . . . Level 5 . | . . . . High Security . | . . . . Max Security . | . . . . Squads Dispatched 7 | . 1 1 5 Investigation 2 | . . . 2 Extermination . | . . . . Reinforcement 3 | . 1 . 2 Assault 2 | . . 1 1 Garrison . | . . . . Intercept . | . . . . Searches Triggered . | . . . . Construction Impeded . | . . . . Haulers Reinforced . | . . . . Active Scanning Responses . | . . . . Cargo Convoy Interrupts . | . . . . Stealth | -11 -10 -10 -9 --------- Run | Yrd Mat Min Mat Distress Signals 6 | . . . 6 Communications Jammed . | . . . . Distress Signals . | . . . . Times Spotted 73 | . 5 3 65 Peak Tracking Total 7 | . 4 3 7 Tactical Retreats 3 | . . . 3 Traps | -11 -10 -10 -9 ------- Run | Yrd Mat Min Mat Traps Triggered 2 | . . . 2 Indirectly . | . . . . Trap Hack Attempts . | . . . . Triggered . | . . . . Disarmed . | . . . . Reprogrammed . | . . . . Reused . | . . . . Traps Extracted . | . . . . Installed . | . . . . Triggered . | . . . . Machines | -11 -10 -10 -9 ---------- Run | Yrd Mat Min Mat Machines Disabled . | . . . . Max in Single Turn . | . . . . Machines Repaired . | . . . . Machines Dismantled . | . . . . Machines Sabotaged . | . . . . Overloaded Fab Kills . | . . . . Hacking | -11 -10 -10 -9 --------- Run | Yrd Mat Min Mat Machines Accessed 2 | . . . 2 Terminals 2 | . . . 2 Fabricators . | . . . . Repair Stations . | . . . . Recycling Units . | . . . . Scanalyzers . | . . . . Garrison Access . | . . . . Total Hacks 5 | . . . 5 Successful 2 | . . . 2 Failed 3 | . . . 3 Catastrophic 1 | . . . 1 Database Lockouts . | . . . . Manual 4 | . . . 4 Terminals 5 | . . . 5 Fabricators . | . . . . Repair Stations . | . . . . Recycling Units . | . . . . Scanalyzers . | . . . . Garrison Access . | . . . . Terminal Hacks 2 | . . . 2 Record 1 | . . . 1 Alert Level 1 | . . . 1 Fabricator Hacks . | . . . . Repair Station Hacks . | . . . . Recycling Unit Hacks . | . . . . Scanalyzer . | . . . . Garrison Access Hacks . | . . . . Unauthorized Hacks . | . . . . Terminals . | . . . . Fabricators . | . . . . Repair Stations . | . . . . Recycling Units . | . . . . Scanalyzers . | . . . . Garrison Access . | . . . . Data Cores Recovered . | . . . . Used . | . . . . Hacking Detections 2 | . . . 2 Full Trace Events . | . . . . Feedback Events . | . . . . Feedback Blocked . | . . . . Robot Schematics Acquired . | . . . . Robots Built . | . . . . Authchips . | . . . . Time . | . . . . Total Robot Build Rating . | . . . . Part Schematics Acquired . | . . . . Parts Built . | . . . . Authchips . | . . . . Time . | . . . . Total Part Build Rating . | . . . . Parts Repaired . | . . . . Time . | . . . . Parts Recycled . | . . . . Recycled Matter . | . . . . Retrieved Matter . | . . . . Retrieved Components . | . . . . Parts Scanalyzed . | . . . . Part Schematics Acquired . | . . . . Parts Damaged . | . . . . Bothacking | -11 -10 -10 -9 ------------ Run | Yrd Mat Min Mat Used RIF Installer . | . . . . Robots Hacked . | . . . . Non-combat . | . . . . Combat . | . . . . Robot Hacks Applied . | . . . . Relay Couplers Released . | . . . . Fabnet Peak Effective % . | . . . . Robots Rewired . | . . . . Allies Hacked . | . . . . Hacks Repelled . | . . . . Allies | -11 -10 -10 -9 -------- Run | Yrd Mat Min Mat Total Allies 1 | . . 1 . Largest Group 1 | . . 1 1 Highest-Rated Group 31 | . . 31 31 Highest-Rated Ally 31 | . . 31 31 Total Orders . | . . . . Ally Attacks 7 | . . 2 5 Total Damage 104 | . . 42 62 Kills 3 | . . 2 1 Allies Corrupted . | . . . . Allies Melted . | . . . . Intel | -11 -10 -10 -9 ------- Run | Yrd Mat Min Mat Robot Analysis Total . | . . . . Derelict Logs Recovered . | . . . . Drone Launches . | . . . . Drone Recoveries . | . . . . Exploration | -11 -10 -10 -9 ------------- Run | Yrd Mat Min Mat Turns Passed 2086 | . 295 23 1768 Spaces Moved 1067 | 1 226 17 823 Core . | . . . . Treads 432 | . . . 432 Legs 635 | 1 226 17 391 Wheels . | . . . . Hover . | . . . . Flight . | . . . . Fastest Speed 120 | 120 120 120 120 Average Speed 136 | 120 120 120 141 Slowest Speed 190 | 120 120 120 190 Overloaded Moves . | . . . . Propulsion Burnouts . | . . . . Robots Hopped . | . . . . Cave-ins Triggered . | . . . . Exploration Rate (%) 26 | 2 33 5 67 Regions Visited 3 Branch Regions 1 Pre-discovered Areas . | . . . . Known Exits Taken . | . . . . Unknown Exits Taken 3 | 1 1 1 . Scrap Searched . | . . . . Spaces Dug . | . . . . Terrain Destroyed . | . . . . Melee . | . . . . Projectile . | . . . . AOE . | . . . . Terrain Rammed . | . . . . Walls Destroyed . | . . . . Machines Disabled . | . . . . Actions | -11 -10 -10 -9 --------- Run | Yrd Mat Min Mat Total 1425 | . 243 17 1165 Wait 159 | . 3 . 156 Move 1064 | . 225 16 823 Hop . | . . . . Pick Up 10 | . 3 . 7 Fast Attach 13 | . 2 . 11 Attach 7 | . . . 7 Detach . | . . . . Swap 9 | . 1 . 8 Drop 14 | . 5 . 9 Fire 146 | . 4 1 141 Melee . | . . . . Ram . | . . . . Kick . | . . . . Crush 3 | . . . 3 Escape Stasis . | . . . . Rewire . | . . . . Trap . | . . . . Miscellaneous . | . . . . Route ------- -11/Scrapyard -10/Materials -10/Mines -9/Materials History --------- Turn | Location | Event 1 | -11/Scrapyard | Discovered new exit (range 0) 1 | -11/Scrapyard | Entered Materials 70 | -10/Materials | Discovered new exit (range 15) 296 | -10/Materials | Entered Mines 297 | -10/Mines | Met a Derelict testing a Signal Generator 301 | -10/Mines | Discovered new exit (range 13) 308 | -10/Mines | Build established: Mutant 319 | -10/Mines | Entered Materials 319 | -9/Materials | Accompanied by 1 ally 319 | -9/Materials | Evolved 2 slots: Propulsion x1, Utility x1 946 | -9/Materials | Core integrity fell below 50% 974 | -9/Materials | Lost 8 parts (1p3n2u2w) 1558 | -9/Materials | Build established: Scavenger-Mutant 1807 | -9/Materials | Core integrity fell below 20% 1919 | -9/Materials | First assault squad dispatched 2087 | -9/Materials | Destroyed by Y-45 Defender with Beam Rifle Last Messages --------------- 02015_ Acquired 1 matter. 02015_ Dropped Lgt. Treads. 02016_ K-01 Serf collects debris. 02017_ Acquired Aluminum Leg. 02019_ K-01 Serf collects debris. 02021_ Dropped Lgt. Treads. 02021_ Acquired Aluminum Leg. 02024_ K-01 Serf collects debris. 02026_ Dropped Lgt. Treads. 02027_ Acquired Aluminum Leg. 02027_ K-01 Serf collects debris. 02029_ Dropped Hvy. Assault Rifle. 02030_ K-01 Serf collects debris. 02033_ Dropped Hvy. Assault Rifle. 02034_ K-01 Serf collects debris. 02036_ Acquired 26 matter. 02038_ K-01 Serf collects debris. 02051_ M-13 Machinist destroyed. 02055_ K-01 Serf collects debris. 02055_ Acquired 24 matter. Map ----- +----------------------------------------------------+ | ##????????????######?# # #????????#! #### | | #????????????????????# # #######??# #??? | | #??????????????####??# # # #??# #??? | | #??????????????# ?# # # #### #### | | ???????????????# ""?# # # T | | ???????????????#! """# # # ###### #### | | ???????????????# """# *#! # #????##+##??? | | ???????????????# + %+= #######???? ??? | | ???????????????# # !######?????????# """ #? | | ???????????????########= ##?????????????# """ #? | | ?????????????#########! % #?????????????# """ #? | | ?????????????#]] !%=#%* #?????????????# #? | | ?????????????#]] ==%+%=[ + [[[ ???????# #? | | ?????????????#]] *[[#!%[=%# [[[ #??????########? | | ?????????????#########[ =! #??[[ #??????????????? | | ?????????????????????###=###????###??????????????? | | ???????????????????????# #???????????????????????? | | ???????????????????????#=#########???????????????? | | ???????????????????????#*# #???????????????? | | ???????????????????????#!# """ #?????????####### | | ???????????????????????#*# """ #?????????# | | ???????????????????????# # """ #?????????# | | ???????????????????????#[# ########### | | ?????????????????????###!# # """ # ##+ | | ?????????????????????#==Y# # """ # # | | ?????????????????????# !@ "" # """ # # | | ?????????????????????#% # """ # + # | | ?????????????????????# # S" # [[[ # # | | ?????????????????????# # # [[[ # ### | | ?????????????????????# ######### [[[ # # | | ?????????????????????# #???????# # # | | ?????????????????????# #???????########### # | | ?????????????????????# #???????######????# + | | ?????????????????????# ????????# #????# # | | ????????????????????? ????????# T ###### #! | | ????????????????????? ????????# + ### | | #???????????????????? ????????# # #?? | | #???????????????????? ????????# + #?? | | #???????????????????# ????????######+#### #?? | | #?????????????????????###?????????# # ### | | #?????????????????????????????????# !!]# | | #?????????????????????????????????# !!]# | | #?????????????????????????????????# !! # | | #?????????????????????????????????############+## | | #??????????????????????????????????????# ]!! # | | #??????????????????????????????????????# ]! #? | | #??????????????????????????????????????# !! #? | | ???????????????????????????????????????# #? | | ???????????????????????????????????????# #? | | ???????????????????????????????????????#! #? | +----------------------------------------------------+ Best States ------------- Heat Dissipation 28 Energy Generation 12 Energy Capacity 265 Matter Stores 300 Matter Capacity 300 Sight Range 16 Terrain Scan Density 10 Armor Coverage 150 Evasion (%) 55 Targeting Accuracy 5 Recoil Reduction 3 Item Schematics ----------------- None Robot Schematics ------------------ None Fabricated ------------ Nothing Alien Tech Used ----------------- None Achievements -------------- None Challenges ------------ None Game ------ Seed CarbideBottomlessCarapace Manual? 0 Play Time 00:20:30 Cumulative 88.3 hours Start 2024.04.03 @ 09:25:40 End 2024.04.03 @ 09:43:22 Sessions 1 Manual Loads 0 Difficulty Rogue Special Mode None Game No. 129 Rogue 129 Adventurer 0 Explorer 0 Win Type - Total 1 Types 1/0/0/0/0/0/0/0/0 Lore% 42 Gallery% 46 Achievement% 41 Wizard Run 0 Options --------- Layout 1 ASCII 0 Keyboard 1 Movement Vi Keybinds 1 Fullscreen 1 Font 32/SmallcapsGlow Map View 50x35 Zoom Use 0% Tactical HUD 1 Map Filters NONE Filters NONE Steam 1 RUN: d7d5c56f-f744-48ae-bd31-6dabd93e475c